[Event "Titled Tuesday Blitz May 23 Early 2023"]
[White "Smiechu"]
[Black "Rodriguez Polo, Mateo"]
[BlackFideId "24509396"]
[WhiteElo "2312"]
[BlackElo "2117"]
[Result "1/2-1/2"]
[Round "03"]
[TimeControl "180+2"]
[Date "2023.05.23"]
[WhiteClock "0:00:09"]
[BlackClock "0:00:13"]

1. e4 {[%clk 0:03:00]}  e5 {[%clk 0:02:59]} 2. Nf3 {[%clk 0:03:00]}  Nc6 {[%clk 0:02:58]} 3. d4 {[%clk 0:03:00]}  exd4 {[%clk 0:02:58]} 4. Nxd4 {[%clk 0:03:01]}  Nf6 {[%clk 0:02:58]} 5. Nxc6 {[%clk 0:03:01]}  bxc6 {[%clk 0:02:59]} 6. e5 {[%clk 0:03:02]}  Qe7 {[%clk 0:02:58]} 7. Qe2 {[%clk 0:03:02]}  Nd5 {[%clk 0:02:58]} 8. c4 {[%clk 0:03:03]}  Nb6 {[%clk 0:02:59]} 9. Nc3 {[%clk 0:03:02]}  Ba6 {[%clk 0:02:50]} 10. b3 {[%clk 0:03:02]}  O-O-O {[%clk 0:02:49]} 11. Bb2 {[%clk 0:02:58]}  Re8 {[%clk 0:02:50]} 12. f4 {[%clk 0:02:55]}  f6 {[%clk 0:02:50]} 13. O-O-O {[%clk 0:02:53]}  fxe5 {[%clk 0:02:49]} 14. fxe5 {[%clk 0:02:50]}  Qxe5 {[%clk 0:02:49]} 15. Qxe5 {[%clk 0:02:47]}  Rxe5 {[%clk 0:02:50]} 16. Bd3 {[%clk 0:02:47]}  Re3 {[%clk 0:02:47]} 17. Rhe1 {[%clk 0:02:45]}  Bc5 {[%clk 0:02:36]} 18. Ne4 {[%clk 0:02:45]}  Rxe1 {[%clk 0:02:24]} 19. Rxe1 {[%clk 0:02:46]}  Be7 {[%clk 0:02:22]} 20. Rf1 {[%clk 0:02:15]}  Rf8 {[%clk 0:02:11]} 21. Bxg7 {[%clk 0:02:12]}  Rxf1+ {[%clk 0:02:06]} 22. Bxf1 {[%clk 0:02:13]}  d5 {[%clk 0:02:05]} 23. Nf6 {[%clk 0:02:05]}  dxc4 {[%clk 0:01:43]} 24. Nxh7 {[%clk 0:02:00]}  Ba3+ {[%clk 0:01:36]} 25. Kb1 {[%clk 0:01:58]}  c5 {[%clk 0:01:11]} 26. h4 {[%clk 0:01:53]}  Bb7 {[%clk 0:01:11]} 27. Ng5 {[%clk 0:01:45]}  cxb3 {[%clk 0:01:08]} 28. axb3 {[%clk 0:01:43]}  c4 {[%clk 0:00:48]} 29. Bxc4 {[%clk 0:01:32]}  Be7 {[%clk 0:00:48]} 30. Be6+ {[%clk 0:01:23]}  Kd8 {[%clk 0:00:45]} 31. Nf7+ {[%clk 0:01:17]}  Ke8 {[%clk 0:00:44]} 32. h5 {[%clk 0:01:17]}  Bxg2 {[%clk 0:00:40]} 33. Be5 {[%clk 0:01:06]}  Be4+ {[%clk 0:00:39]} 34. Ka2 {[%clk 0:01:02]}  c5 {[%clk 0:00:22]} 35. h6 {[%clk 0:00:57]}  Nd7 {[%clk 0:00:22]} 36. Bg7 {[%clk 0:00:51]}  Nf8 {[%clk 0:00:18]} 37. Bc4 {[%clk 0:00:39]}  Bg6 {[%clk 0:00:18]} 38. Ne5 {[%clk 0:00:38]}  Bh7 {[%clk 0:00:17]} 39. Bf7+ {[%clk 0:00:32]}  Kd8 {[%clk 0:00:16]} 40. Nc6+ {[%clk 0:00:29]}  Kd7 {[%clk 0:00:15]} 41. Nxa7 {[%clk 0:00:27]}  Ne6 {[%clk 0:00:15]} 42. Bc3 {[%clk 0:00:11]}  Ng5 {[%clk 0:00:14]} 43. Bc4 {[%clk 0:00:10]}  Ne4 {[%clk 0:00:15]} 44. Bb5+ {[%clk 0:00:10]}  Ke6 {[%clk 0:00:14]} 45. Bg7 {[%clk 0:00:09]}  Nd6 {[%clk 0:00:15]} 46. Be2 {[%clk 0:00:07]}  Nf5 {[%clk 0:00:15]} 47. Bc3 {[%clk 0:00:06]}  Bg5 {[%clk 0:00:15]} 48. Nc6 {[%clk 0:00:06]}  Bxh6 {[%clk 0:00:15]} 49. Bg4 {[%clk 0:00:06]}  Kd5 {[%clk 0:00:14]} 50. Bxf5 {[%clk 0:00:04]}  Bxf5 {[%clk 0:00:13]} 51. Ne7+ {[%clk 0:00:05]}  Ke6 {[%clk 0:00:14]} 52. Nxf5 {[%clk 0:00:06]}  Kxf5 {[%clk 0:00:14]} 53. Ka3 {[%clk 0:00:07]}  Ke6 {[%clk 0:00:14]} 54. Ka4 {[%clk 0:00:07]}  Kd5 {[%clk 0:00:15]} 55. Kb5 {[%clk 0:00:08]}  Be3 {[%clk 0:00:14]} 56. b4 {[%clk 0:00:09]}  cxb4 {[%clk 0:00:13]} 57. Bxb4 {[%clk 0:00:09]} 1/2-1/2


[Site "https://www.chess.com"]

[Event "Titled Tuesday Blitz May 23 Early 2023"]
[White "Goldin, Roman"]
[Black "Vargas, Mauricio"]
[WhiteFideId "2803860"]
[BlackFideId "4404572"]
[WhiteElo "2312"]
[BlackElo "1986"]
[Result "1-0"]
[Round "03"]
[TimeControl "180+2"]
[Date "2023.05.23"]
[WhiteClock "0:00:46"]
[BlackClock "0:00:00"]

1. e4 {[%clk 0:02:59]}  c5 {[%clk 0:02:59]} 2. Nf3 {[%clk 0:02:59]}  Nc6 {[%clk 0:02:59]} 3. c3 {[%clk 0:02:58]}  d6 {[%clk 0:02:59]} 4. d4 {[%clk 0:02:57]}  cxd4 {[%clk 0:02:56]} 5. cxd4 {[%clk 0:02:58]}  g6 {[%clk 0:02:55]} 6. d5 {[%clk 0:02:56]}  Nb8 {[%clk 0:02:42]} 7. Be3 {[%clk 0:02:49]}  Bg7 {[%clk 0:02:40]} 8. Bd4 {[%clk 0:02:48]}  Nf6 {[%clk 0:02:39]} 9. Nc3 {[%clk 0:02:48]}  O-O {[%clk 0:02:39]} 10. Be2 {[%clk 0:02:34]}  a6 {[%clk 0:02:26]} 11. a4 {[%clk 0:02:32]}  Bd7 {[%clk 0:02:24]} 12. O-O {[%clk 0:02:29]}  Qe8 {[%clk 0:02:23]} 13. h3 {[%clk 0:02:21]}  a5 {[%clk 0:02:06]} 14. Qb3 {[%clk 0:02:07]}  Bc8 {[%clk 0:02:01]} 15. Nb5 {[%clk 0:02:01]}  Na6 {[%clk 0:01:59]} 16. e5 {[%clk 0:01:58]}  dxe5 {[%clk 0:01:51]} 17. Nxe5 {[%clk 0:01:57]}  Qd8 {[%clk 0:01:45]} 18. Bf3 {[%clk 0:01:57]}  Nb4 {[%clk 0:01:30]} 19. Nc3 {[%clk 0:01:47]}  e6 {[%clk 0:01:10]} 20. Bc5 {[%clk 0:01:41]}  Qc7 {[%clk 0:00:17]} 21. Bxf8 {[%clk 0:01:35]}  Kxf8 {[%clk 0:00:18]} 22. Rfe1 {[%clk 0:01:31]}  Nfxd5 {[%clk 0:00:11]} 23. Nxd5 {[%clk 0:01:21]}  exd5 {[%clk 0:00:09]} 24. Rac1 {[%clk 0:01:08]}  Qd6 {[%clk 0:00:05]} 25. Nd3 {[%clk 0:00:53]}  Nxd3 {[%clk 0:00:05]} 26. Qxd3 {[%clk 0:00:53]}  Bf5 {[%clk 0:00:00]} 27. Qb5 {[%clk 0:00:46]} 1-0


[Site "https://www.chess.com"]

[Event "Titled Tuesday Blitz May 23 Early 2023"]
[White "Castillo Pena, Patricia Evarista"]
[Black "Silva Rosas, Natalia"]
[WhiteFideId "6412106"]
[BlackFideId "3000575"]
[WhiteElo "1919"]
[BlackElo "1651"]
[Result "1-0"]
[Round "03"]
[TimeControl "180+2"]
[Date "2023.05.23"]
[WhiteClock "0:00:19"]
[BlackClock "0:00:13"]

1. d4 {[%clk 0:02:59]}  f5 {[%clk 0:02:58]} 2. Nf3 {[%clk 0:02:56]}  Nf6 {[%clk 0:02:59]} 3. e3 {[%clk 0:02:56]}  g6 {[%clk 0:02:59]} 4. Bd3 {[%clk 0:02:56]}  Bg7 {[%clk 0:02:59]} 5. O-O {[%clk 0:02:56]}  O-O {[%clk 0:03:00]} 6. b3 {[%clk 0:02:57]}  d6 {[%clk 0:03:00]} 7. Bb2 {[%clk 0:02:57]}  c6 {[%clk 0:02:59]} 8. c4 {[%clk 0:02:56]}  Na6 {[%clk 0:02:57]} 9. Nbd2 {[%clk 0:02:55]}  Nb4 {[%clk 0:02:54]} 10. Be2 {[%clk 0:02:51]}  Qe8 {[%clk 0:02:52]} 11. a3 {[%clk 0:02:51]}  Na6 {[%clk 0:02:51]} 12. Qc2 {[%clk 0:02:34]}  h6 {[%clk 0:02:50]} 13. e4 {[%clk 0:02:30]}  fxe4 {[%clk 0:02:46]} 14. Nxe4 {[%clk 0:02:30]}  Nxe4 {[%clk 0:02:45]} 15. Qxe4 {[%clk 0:02:29]}  Bf5 {[%clk 0:02:45]} 16. Qe3 {[%clk 0:02:28]}  Nc7 {[%clk 0:02:39]} 17. Bd3 {[%clk 0:02:19]}  Qf7 {[%clk 0:02:28]} 18. Bxf5 {[%clk 0:02:16]}  gxf5 {[%clk 0:02:27]} 19. Rae1 {[%clk 0:02:12]}  Rae8 {[%clk 0:02:24]} 20. Re2 {[%clk 0:02:00]}  Qh5 {[%clk 0:02:13]} 21. Rfe1 {[%clk 0:01:55]}  d5 {[%clk 0:02:02]} 22. Ne5 {[%clk 0:01:47]}  f4 {[%clk 0:01:57]} 23. Qf3 {[%clk 0:01:37]}  Qxf3 {[%clk 0:01:47]} 24. Nxf3 {[%clk 0:01:36]}  e6 {[%clk 0:01:32]} 25. Ne5 {[%clk 0:01:31]}  Rf5 {[%clk 0:01:18]} 26. f3 {[%clk 0:01:29]}  h5 {[%clk 0:01:09]} 27. Bc1 {[%clk 0:01:23]}  Bh6 {[%clk 0:01:00]} 28. g3 {[%clk 0:01:04]}  Re7 {[%clk 0:00:50]} 29. Kg2 {[%clk 0:00:48]}  Rg7 {[%clk 0:00:48]} 30. g4 {[%clk 0:00:41]}  hxg4 {[%clk 0:00:46]} 31. fxg4 {[%clk 0:00:40]}  f3+ {[%clk 0:00:46]} 32. Nxf3 {[%clk 0:00:40]}  Rxg4+ {[%clk 0:00:44]} 33. Kf2 {[%clk 0:00:39]}  Bxc1 {[%clk 0:00:39]} 34. Rxc1 {[%clk 0:00:38]}  Rgf4 {[%clk 0:00:38]} 35. Rg1+ {[%clk 0:00:37]}  Kf7 {[%clk 0:00:36]} 36. Rg3 {[%clk 0:00:36]}  e5 {[%clk 0:00:30]} 37. dxe5 {[%clk 0:00:35]}  Ne6 {[%clk 0:00:26]} 38. cxd5 {[%clk 0:00:32]}  cxd5 {[%clk 0:00:25]} 39. Kg2 {[%clk 0:00:28]}  Rxf3 {[%clk 0:00:19]} 40. Rxf3 {[%clk 0:00:26]}  Rxf3 {[%clk 0:00:20]} 41. Kxf3 {[%clk 0:00:26]}  Nd4+ {[%clk 0:00:20]} 42. Ke3 {[%clk 0:00:26]}  Nxe2 {[%clk 0:00:20]} 43. Kxe2 {[%clk 0:00:26]}  Ke6 {[%clk 0:00:20]} 44. Kd3 {[%clk 0:00:26]}  Kxe5 {[%clk 0:00:21]} 45. h4 {[%clk 0:00:22]}  Kf5 {[%clk 0:00:15]} 46. Kd4 {[%clk 0:00:22]}  Kg4 {[%clk 0:00:15]} 47. Kxd5 {[%clk 0:00:23]}  Kxh4 {[%clk 0:00:15]} 48. Kd6 {[%clk 0:00:23]}  Kg4 {[%clk 0:00:15]} 49. Kc7 {[%clk 0:00:24]}  Kf5 {[%clk 0:00:16]} 50. Kxb7 {[%clk 0:00:24]}  Ke5 {[%clk 0:00:16]} 51. Kxa7 {[%clk 0:00:20]}  Kd5 {[%clk 0:00:17]} 52. b4 {[%clk 0:00:19]}  Kc4 {[%clk 0:00:15]} 53. Kb6 {[%clk 0:00:18]}  Kb3 {[%clk 0:00:15]} 54. b5 {[%clk 0:00:17]}  Kxa3 {[%clk 0:00:15]} 55. Ka7 {[%clk 0:00:18]}  Ka4 {[%clk 0:00:14]} 56. b6 {[%clk 0:00:18]}  Ka5 {[%clk 0:00:15]} 57. b7 {[%clk 0:00:18]}  Ka4 {[%clk 0:00:15]} 58. b8=Q {[%clk 0:00:19]}  Ka3 {[%clk 0:00:13]} 59. Ka6 {[%clk 0:00:19]} 1-0


[Site "https://www.chess.com"]

[Event "Titled Tuesday Blitz May 23 Early 2023"]
[White "Dubov, Daniil"]
[Black "Talibov, Shiroghlan"]
[WhiteFideId "24126055"]
[BlackFideId "13429078"]
[WhiteElo "2793"]
[BlackElo "2188"]
[Result "1/2-1/2"]
[Round "04"]
[TimeControl "180+2"]
[Date "2023.05.23"]
[WhiteClock "0:00:05"]
[BlackClock "0:00:03"]

1. e4 {[%clk 0:03:00]}  c5 {[%clk 0:02:57]} 2. Nf3 {[%clk 0:03:00]}  Nc6 {[%clk 0:02:57]} 3. Nc3 {[%clk 0:03:01]}  Nf6 {[%clk 0:02:56]} 4. Bb5 {[%clk 0:03:01]}  e5 {[%clk 0:02:46]} 5. Bxc6 {[%clk 0:02:51]}  dxc6 {[%clk 0:02:47]} 6. d3 {[%clk 0:02:44]}  Bd6 {[%clk 0:02:38]} 7. Bg5 {[%clk 0:02:41]}  h6 {[%clk 0:02:38]} 8. Bh4 {[%clk 0:02:41]}  Be6 {[%clk 0:02:38]} 9. h3 {[%clk 0:02:39]}  Qe7 {[%clk 0:02:29]} 10. Bg3 {[%clk 0:02:33]}  Nd7 {[%clk 0:02:25]} 11. Nd2 {[%clk 0:02:33]}  Bc7 {[%clk 0:02:18]} 12. a4 {[%clk 0:02:32]}  O-O {[%clk 0:02:08]} 13. O-O {[%clk 0:02:31]}  f6 {[%clk 0:01:53]} 14. b3 {[%clk 0:02:28]}  b6 {[%clk 0:01:43]} 15. Qe2 {[%clk 0:02:28]}  Rfe8 {[%clk 0:01:42]} 16. f4 {[%clk 0:02:11]}  exf4 {[%clk 0:01:41]} 17. Bxf4 {[%clk 0:02:12]}  Bxf4 {[%clk 0:01:38]} 18. Rxf4 {[%clk 0:02:13]}  Rad8 {[%clk 0:01:34]} 19. Raf1 {[%clk 0:02:08]}  Ne5 {[%clk 0:01:33]} 20. Nd1 {[%clk 0:02:01]}  a5 {[%clk 0:01:16]} 21. Ne3 {[%clk 0:02:00]}  b5 {[%clk 0:01:15]} 22. Ra1 {[%clk 0:01:40]}  Ng6 {[%clk 0:01:06]} 23. Rf2 {[%clk 0:01:39]}  Qc7 {[%clk 0:01:05]} 24. Qh5 {[%clk 0:01:15]}  Ne5 {[%clk 0:00:52]} 25. Nf3 {[%clk 0:01:04]}  Bf7 {[%clk 0:00:43]} 26. Qf5 {[%clk 0:01:03]}  Nxf3+ {[%clk 0:00:40]} 27. Rxf3 {[%clk 0:00:57]}  c4 {[%clk 0:00:40]} 28. bxc4 {[%clk 0:00:55]}  bxc4 {[%clk 0:00:41]} 29. Ng4 {[%clk 0:00:53]}  Be6 {[%clk 0:00:32]} 30. Qg6 {[%clk 0:00:43]}  Bxg4 {[%clk 0:00:31]} 31. Qxg4 {[%clk 0:00:44]}  cxd3 {[%clk 0:00:30]} 32. cxd3 {[%clk 0:00:45]}  Qe5 {[%clk 0:00:29]} 33. Raf1 {[%clk 0:00:43]}  Rd6 {[%clk 0:00:27]} 34. Kh1 {[%clk 0:00:40]}  Kh7 {[%clk 0:00:26]} 35. Rg3 {[%clk 0:00:39]}  Re7 {[%clk 0:00:26]} 36. Qg6+ {[%clk 0:00:39]}  Kh8 {[%clk 0:00:23]} 37. Rf5 {[%clk 0:00:39]}  Qe6 {[%clk 0:00:20]} 38. Rh5 {[%clk 0:00:37]}  f5 {[%clk 0:00:18]} 39. Qxe6 {[%clk 0:00:28]}  Rdxe6 {[%clk 0:00:18]} 40. Rxf5 {[%clk 0:00:28]}  Re5 {[%clk 0:00:19]} 41. Rgf3 {[%clk 0:00:25]}  Rxf5 {[%clk 0:00:18]} 42. Rxf5 {[%clk 0:00:25]}  Rd7 {[%clk 0:00:13]} 43. Rxa5 {[%clk 0:00:24]}  Rxd3 {[%clk 0:00:13]} 44. Rc5 {[%clk 0:00:20]}  Ra3 {[%clk 0:00:12]} 45. a5 {[%clk 0:00:20]}  Kh7 {[%clk 0:00:11]} 46. Kg1 {[%clk 0:00:19]}  Kg8 {[%clk 0:00:09]} 47. Kf2 {[%clk 0:00:18]}  Kf7 {[%clk 0:00:10]} 48. e5 {[%clk 0:00:16]}  Ke7 {[%clk 0:00:08]} 49. Ke2 {[%clk 0:00:15]}  Kd7 {[%clk 0:00:08]} 50. Kd2 {[%clk 0:00:14]}  Ra2+ {[%clk 0:00:06]} 51. Kc3 {[%clk 0:00:14]}  Rxg2 {[%clk 0:00:05]} 52. Kb3 {[%clk 0:00:15]}  Rg1 {[%clk 0:00:05]} 53. Rc2 {[%clk 0:00:12]}  Kc7 {[%clk 0:00:05]} 54. Re2 {[%clk 0:00:11]}  Rb1+ {[%clk 0:00:04]} 55. Kc2 {[%clk 0:00:08]}  Rb5 {[%clk 0:00:03]} 56. e6 {[%clk 0:00:04]}  Kd8 {[%clk 0:00:04]} 57. Rf2 {[%clk 0:00:04]}  Ke7 {[%clk 0:00:03]} 58. a6 {[%clk 0:00:03]}  Ra5 {[%clk 0:00:03]} 59. Rf7+ {[%clk 0:00:02]}  Kxe6 {[%clk 0:00:04]} 60. Rxg7 {[%clk 0:00:03]}  Rxa6 {[%clk 0:00:04]} 61. Rg6+ {[%clk 0:00:04]}  Kd5 {[%clk 0:00:04]} 62. Rxh6 {[%clk 0:00:05]}  Ra2+ {[%clk 0:00:03]} 63. Kb3 {[%clk 0:00:05]} 1/2-1/2


[Site "https://www.chess.com"]

[Event "Titled Tuesday Blitz May 23 Early 2023"]
[White "Grischuk, Alexander"]
[Black "Salinas Herrera, Pablo"]
[WhiteFideId "4126025"]
[BlackFideId "3407128"]
[WhiteElo "2721"]
[BlackElo "2546"]
[Result "1/2-1/2"]
[Round "04"]
[TimeControl "180+2"]
[Date "2023.05.23"]
[WhiteClock "0:00:07"]
[BlackClock "0:00:10"]

1. Nf3 {[%clk 0:02:56]}  d5 {[%clk 0:03:00]} 2. g3 {[%clk 0:02:57]}  Nf6 {[%clk 0:03:00]} 3. Bg2 {[%clk 0:02:57]}  e6 {[%clk 0:03:01]} 4. O-O {[%clk 0:02:57]}  Be7 {[%clk 0:03:02]} 5. d3 {[%clk 0:02:56]}  O-O {[%clk 0:02:59]} 6. c4 {[%clk 0:02:56]}  c5 {[%clk 0:02:54]} 7. cxd5 {[%clk 0:02:56]}  exd5 {[%clk 0:02:54]} 8. d4 {[%clk 0:02:56]}  c4 {[%clk 0:02:53]} 9. Nc3 {[%clk 0:02:57]}  h6 {[%clk 0:02:52]} 10. b3 {[%clk 0:02:56]}  cxb3 {[%clk 0:02:47]} 11. Qxb3 {[%clk 0:02:54]}  Nc6 {[%clk 0:02:47]} 12. a4 {[%clk 0:02:33]}  Re8 {[%clk 0:02:44]} 13. Ba3 {[%clk 0:02:31]}  Bxa3 {[%clk 0:02:38]} 14. Qxa3 {[%clk 0:02:29]}  Bg4 {[%clk 0:02:36]} 15. e3 {[%clk 0:02:29]}  Rc8 {[%clk 0:02:20]} 16. Rfc1 {[%clk 0:02:26]}  Qd7 {[%clk 0:02:03]} 17. a5 {[%clk 0:02:20]}  Qf5 {[%clk 0:01:59]} 18. Nd2 {[%clk 0:02:07]}  Bh3 {[%clk 0:01:56]} 19. Bf3 {[%clk 0:01:44]}  Rcd8 {[%clk 0:00:35]} 20. Qb3 {[%clk 0:01:39]}  Rd7 {[%clk 0:00:35]} 21. Qb1 {[%clk 0:01:18]}  Qg5 {[%clk 0:00:30]} 22. Qd3 {[%clk 0:01:18]}  Bf5 {[%clk 0:00:28]} 23. Qf1 {[%clk 0:01:13]}  Nxd4 {[%clk 0:00:27]} 24. Bg2 {[%clk 0:01:02]}  Nc6 {[%clk 0:00:26]} 25. Nf3 {[%clk 0:01:02]}  Qh5 {[%clk 0:00:27]} 26. Nb5 {[%clk 0:01:02]}  Be4 {[%clk 0:00:25]} 27. Nbd4 {[%clk 0:01:00]}  Nxd4 {[%clk 0:00:25]} 28. Nxd4 {[%clk 0:01:00]}  Bxg2 {[%clk 0:00:25]} 29. Qxg2 {[%clk 0:01:01]}  Qe5 {[%clk 0:00:24]} 30. a6 {[%clk 0:00:58]}  bxa6 {[%clk 0:00:22]} 31. Rxa6 {[%clk 0:00:58]}  Rc7 {[%clk 0:00:22]} 32. Rxc7 {[%clk 0:00:47]}  Qxc7 {[%clk 0:00:23]} 33. Qf3 {[%clk 0:00:48]}  Qb7 {[%clk 0:00:19]} 34. Qe2 {[%clk 0:00:26]}  Ne4 {[%clk 0:00:18]} 35. Kg2 {[%clk 0:00:26]}  Nc5 {[%clk 0:00:14]} 36. Ra5 {[%clk 0:00:24]}  Ne6 {[%clk 0:00:14]} 37. Qb5 {[%clk 0:00:22]}  Qxb5 {[%clk 0:00:11]} 38. Nxb5 {[%clk 0:00:23]}  Ra8 {[%clk 0:00:09]} 39. Rxa7 {[%clk 0:00:09]}  Rxa7 {[%clk 0:00:09]} 40. Nxa7 {[%clk 0:00:10]}  d4 {[%clk 0:00:10]} 41. exd4 {[%clk 0:00:08]}  Nxd4 {[%clk 0:00:11]} 42. Nc8 {[%clk 0:00:07]}  Kf8 {[%clk 0:00:10]} 1/2-1/2


[Site "https://www.chess.com"]

[Event "Titled Tuesday Blitz May 23 Early 2023"]
[White "Fier, Alexandr"]
[Black "Bortnyk, Olexandr"]
[WhiteFideId "2107139"]
[BlackFideId "14120828"]
[WhiteElo "2610"]
[BlackElo "2734"]
[Result "0-1"]
[Round "04"]
[TimeControl "180+2"]
[Date "2023.05.23"]
[WhiteClock "0:00:14"]
[BlackClock "0:00:13"]

1. c4 {[%clk 0:03:00]}  Nf6 {[%clk 0:02:58]} 2. Nc3 {[%clk 0:03:00]}  b6 {[%clk 0:02:54]} 3. e4 {[%clk 0:02:59]}  e5 {[%clk 0:02:55]} 4. Nf3 {[%clk 0:02:56]}  Nc6 {[%clk 0:02:54]} 5. d3 {[%clk 0:02:55]}  Bc5 {[%clk 0:02:51]} 6. Be2 {[%clk 0:02:53]}  O-O {[%clk 0:02:51]} 7. O-O {[%clk 0:02:52]}  a5 {[%clk 0:02:49]} 8. Na4 {[%clk 0:02:51]}  h6 {[%clk 0:02:48]} 9. Nxc5 {[%clk 0:02:50]}  bxc5 {[%clk 0:02:49]} 10. b3 {[%clk 0:02:49]}  d6 {[%clk 0:02:49]} 11. Ne1 {[%clk 0:02:49]}  Nd4 {[%clk 0:02:45]} 12. Nc2 {[%clk 0:02:47]}  Nxc2 {[%clk 0:02:30]} 13. Qxc2 {[%clk 0:02:47]}  Qe7 {[%clk 0:02:00]} 14. f4 {[%clk 0:02:42]}  Nd7 {[%clk 0:02:01]} 15. f5 {[%clk 0:02:41]}  f6 {[%clk 0:01:53]} 16. Bh5 {[%clk 0:02:41]}  Nb8 {[%clk 0:01:52]} 17. Bg6 {[%clk 0:02:41]}  Bd7 {[%clk 0:01:52]} 18. Rf3 {[%clk 0:02:38]}  Be8 {[%clk 0:01:31]} 19. Rg3 {[%clk 0:02:37]}  Bxg6 {[%clk 0:01:32]} 20. Rxg6 {[%clk 0:02:38]}  Kf7 {[%clk 0:01:32]} 21. Be3 {[%clk 0:02:09]}  Ke8 {[%clk 0:01:31]} 22. Rf1 {[%clk 0:02:09]}  Nc6 {[%clk 0:01:29]} 23. Rf3 {[%clk 0:02:08]}  Rf7 {[%clk 0:01:29]} 24. Rfg3 {[%clk 0:02:08]}  Kd7 {[%clk 0:01:30]} 25. R3g4 {[%clk 0:02:08]}  Rh8 {[%clk 0:01:15]} 26. Qf2 {[%clk 0:02:03]}  Rh7 {[%clk 0:01:15]} 27. Qb2 {[%clk 0:02:01]}  Qd8 {[%clk 0:01:13]} 28. h4 {[%clk 0:01:52]}  h5 {[%clk 0:01:09]} 29. Rg3 {[%clk 0:01:52]}  Qb8 {[%clk 0:01:06]} 30. Rf3 {[%clk 0:01:52]}  Qb4 {[%clk 0:01:01]} 31. Bd2 {[%clk 0:01:51]}  Qb6 {[%clk 0:01:00]} 32. Bc3 {[%clk 0:01:52]}  a4 {[%clk 0:00:59]} 33. bxa4 {[%clk 0:01:44]}  Qxb2 {[%clk 0:00:52]} 34. Bxb2 {[%clk 0:01:45]}  Rh8 {[%clk 0:00:49]} 35. Rfg3 {[%clk 0:01:44]}  Rg8 {[%clk 0:00:39]} 36. Re3 {[%clk 0:01:31]}  Ra8 {[%clk 0:00:35]} 37. g4 {[%clk 0:01:30]}  Ne7 {[%clk 0:00:33]} 38. gxh5 {[%clk 0:01:29]}  Nxg6 {[%clk 0:00:34]} 39. hxg6 {[%clk 0:01:30]}  Rff8 {[%clk 0:00:34]} 40. h5 {[%clk 0:01:26]}  Rh8 {[%clk 0:00:28]} 41. Rh3 {[%clk 0:01:25]}  Rxa4 {[%clk 0:00:29]} 42. a3 {[%clk 0:01:25]}  Rb8 {[%clk 0:00:26]} 43. Rh2 {[%clk 0:01:25]}  Ra7 {[%clk 0:00:24]} 44. Rg2 {[%clk 0:00:30]}  Rab7 {[%clk 0:00:23]} 45. Bc3 {[%clk 0:00:30]}  Rb3 {[%clk 0:00:21]} 46. Bd2 {[%clk 0:00:31]}  Rxd3 {[%clk 0:00:20]} 47. h6 {[%clk 0:00:31]}  gxh6 {[%clk 0:00:20]} 48. Bxh6 {[%clk 0:00:29]}  Ke7 {[%clk 0:00:15]} 49. Kh2 {[%clk 0:00:17]}  Rh8 {[%clk 0:00:10]} 50. g7 {[%clk 0:00:16]}  Rxh6+ {[%clk 0:00:10]} 51. Kg1 {[%clk 0:00:16]}  Rd1+ {[%clk 0:00:11]} 52. Kf2 {[%clk 0:00:17]}  Rd2+ {[%clk 0:00:12]} 53. Kf3 {[%clk 0:00:14]}  Rxg2 {[%clk 0:00:13]} 54. Kxg2 {[%clk 0:00:14]}  Kf7 {[%clk 0:00:13]} 0-1


[Site "https://www.chess.com"]